bitfinex/quotes_SOLUSD_20220211
["timestamp","ask_amount","ask_price","bid_price","bid_amount"]
[1644539642632,4.772,104.8,104.72,47.68086276]
[1644539642838,102.4431,104.82,104.72,49.71948733]
[1644539643033,102.4431,104.82,104.72,49.96948733]
[1644539643233,107.2151,104.82,104.72,49.96948733]
[1644539643433,121.5389,104.82,104.72,64.29598733]
[1644539643632,46.91253546,104.81,104.72,64.04598733]
[1644539643836,4.772,104.8,104.72,62.00736276]
[1644539644136,38.56017472,104.79,104.72,73.13736276]
[1644539644334,38.81017472,104.79,104.72,73.13736276]
[1644539644734,38.56017472,104.79,104.72,73.13736276]
[1644539645337,19.0974,104.81,104.72,73.13736276]
[1644539645537,4.772,104.81,104.73,2.03862457]
[1644539645736,4.772,104.85,104.76,14.3182]
[1644539645936,4.769,104.86,104.77,11.13]
[1644539646139,4.769,104.86,104.77,13.16862457]
[1644539646344,37.86580778,104.86,104.78,38.05382392]
[1644539646541,37.86580778,104.86,104.79,11.13]
[1644539646744,4.769,104.85,104.79,11.13]
[1644539646943,19.0887,104.85,104.76,11.13]
[1644539647143,4.769,104.85,104.76,11.13]
[1644539647343,4.769,104.85,104.76,11.38]
[1644539647542,37.86580778,104.86,104.76,13.41862457]
[1644539647745,46.2932,104.88,104.76,13.41862457]
[1644539647944,46.2932,104.88,104.77,14.3208]
[1644539648144,46.2932,104.88,104.78,11.13]
[1644539648343,4.769,104.89,104.78,13.41862457]
[1644539648543,24.9996,104.9,104.78,13.41862457]
[1644539648744,34.48603615,104.89,104.8,36.73151287]
[1644539648947,39.25403615,104.89,104.8,47.86151287]
[1644539649143,39.25403615,104.89,104.8,50.15013744]
[1644539649144,39.50403615,104.89,104.8,50.15013744]
[1644539649344,39.50403615,104.89,104.81,14.3123]
[1644539649544,39.50403615,104.89,104.82,34.42778842]
[1644539649943,34.73603615,104.89,104.82,34.42778842]
[1644539650545,39.20551174,104.87,104.82,34.42778842]
[1644539650844,39.20551174,104.87,104.8,14.3158]
[1644539651045,4.769,104.86,104.8,14.3158]
[1644539651748,48.41247476,104.85,104.81,38.09941079]
[1644539652346,48.41247476,104.85,104.8,14.3158]
[1644539652547,48.41247476,104.85,104.78,14.3175]
[1644539652847,4.769,104.84,104.75,11.13]
[1644539653047,48.41247476,104.85,104.75,11.13]
[1644539653246,4.769,104.84,104.75,11.13]
[1644539653447,47.93296341,104.83,104.76,36.24627721]
[1644539653849,47.93296341,104.83,104.76,38.28490178]
[1644539654052,47.93296341,104.83,104.76,49.66490178]
[1644539654248,47.93296341,104.83,104.76,49.41490178]
[1644539654449,47.93296341,104.83,104.76,47.37627721]
[1644539654749,47.93296341,104.83,104.76,25.451]
[1644539654950,4.771,104.82,104.76,11.13]
[1644539655150,4.771,104.82,104.73,11.13]
[1644539655352,4.771,104.82,104.72,11.13]
[1644539655751,39.96592101,104.81,104.72,11.13]
[1644539655954,14.3264,104.8,104.72,25.4557]
[1644539656151,37.50769468,104.79,104.72,25.4557]
[1644539656351,37.50769468,104.79,104.73,44.4168956]
[1644539656553,37.50769468,104.79,104.72,25.4557]
[1644539657551,37.50769468,104.79,104.73,44.79257514]
[1644539657752,37.50769468,104.79,104.73,59.11757514]
[1644539658952,37.50769468,104.79,104.72,16.36532457]
[1644539659354,37.50769468,104.79,104.72,2.03862457]
[1644539659753,52.08529468,104.79,104.72,2.03862457]
[1644539659954,37.75769468,104.79,104.73,37.54327024]
[1644539660456,37.75769468,104.79,104.71,11.13]
[1644539660658,4.773,104.78,104.71,11.13]
[1644539660858,19.1025,104.78,104.68,58.6143]
[1644539661258,19.1025,104.78,104.7,14.3295]
[1644539661460,41.56089602,104.77,104.7,14.3295]
[1644539661663,41.56089602,104.77,104.68,47.4843]
[1644539661859,55.89169602,104.77,104.67,11.13]
[1644539662061,4.774,104.76,104.66,11.13]
[1644539662262,4.774,104.76,104.66,25.4641]
[1644539662461,39.51858436,104.75,104.66,45.71130695]
[1644539663761,19.1094,104.74,104.66,45.71130695]
[1644539663968,42.2162891,104.73,104.66,47.74993152]
[1644539664361,42.2162891,104.73,104.66,45.71130695]
[1644539665564,4.775,104.77,104.66,45.71130695]
[1644539665863,14.3333,104.75,104.66,62.08473152]
[1644539666581,37.56061446,104.74,104.66,62.08473152]
[1644539666787,42.33561446,104.74,104.66,62.08473152]
[1644539667281,42.58561446,104.74,104.66,62.08473152]
[1644539667882,37.81061446,104.74,104.66,62.08473152]
[1644539668782,37.81061446,104.74,104.67,11.13]
[1644539668981,37.81061446,104.74,104.68,44.78634086]
[1644539669182,37.81061446,104.74,104.68,61.15606543]
[1644539669583,37.81061446,104.74,104.68,72.28606543]
[1644539672684,37.56061446,104.74,104.68,72.28606543]
[1644539673583,37.56061446,104.74,104.68,27.49972457]
[1644539673784,4.775,104.73,104.68,27.49972457]
[1644539674687,44.45126665,104.72,104.68,27.49972457]
[1644539675090,44.45126665,104.72,104.68,25.4611]
[1644539675288,44.45126665,104.72,104.66,14.3354]
[1644539675489,4.776,104.71,104.61,59.5117]
[1644539675688,4.776,104.71,104.61,11.13]
[1644539675889,44.49034528,104.7,104.6,45.88739916]
[1644539676090,41.39633025,104.68,104.6,45.88739916]
[1644539676290,41.39633025,104.68,104.61,14.3422]
[1644539676489,36.9050258,104.66,104.61,14.3422]
[1644539677193,36.9050258,104.66,104.57,60.98052457]
[1644539677591,36.9050258,104.66,104.57,67.23052457]
[1644539677893,36.9050258,104.66,104.6,14.3436]
[1644539678092,36.9050258,104.66,104.6,59.48465785]
[1644539678294,14.3429,104.68,104.6,59.48465785]
[1644539678493,4.777,104.7,104.61,2.03862457]
[1644539678693,47.8699,104.71,104.62,11.13]
[1644539678894,4.777,104.7,104.62,11.13]
[1644539679094,4.777,104.7,104.64,14.3372]
[1644539679294,47.81950312,104.69,104.62,36.56483407]
[1644539680295,48.06950312,104.69,104.62,36.56483407]
[1644539680495,39.04172569,104.67,104.62,36.56483407]
[1644539680695,14.3402,104.7,104.62,52.94365864]
[1644539680898,4.777,104.73,104.62,64.32365864]
[1644539681195,77.3708,104.74,104.62,64.32365864]
[1644539681396,77.3708,104.74,104.62,52.94365864]
[1644539681596,88.9508,104.74,104.62,14.3402]
[1644539681794,2.23122154,104.73,104.62,14.3402]
[1644539681994,2.23122154,104.73,104.61,14.3424]
[1644539681995,14.3424,104.7,104.61,14.3424]
[1644539682195,4.777,104.69,104.61,14.3424]
[1644539682597,47.65830715,104.68,104.61,14.3424]
[1644539682796,36.39459632,104.66,104.61,14.3424]
[1644539683997,36.64459632,104.66,104.6,14.3436]
[1644539684197,41.42159632,104.66,104.6,14.3436]
[1644539684398,36.39459632,104.66,104.6,51.54538625]
[1644539684596,36.39459632,104.66,104.6,53.56684941]
[1644539687198,36.64459632,104.66,104.6,53.56684941]
[1644539687498,36.64459632,104.66,104.6,16.36506316]
[1644539688701,19.1196,104.68,104.61,45.76576652]
[1644539688906,48.1676,104.7,104.62,14.3408]
[1644539688907,67.2854,104.7,104.62,14.3408]
[1644539689101,48.1676,104.7,104.62,16.36226316]
[1644539689402,48.1676,104.7,104.62,27.49226316]
[1644539689703,35.78136932,104.69,104.62,27.49226316]
[1644539689902,35.78136932,104.69,104.63,48.18437221]
[1644539690102,35.78136932,104.69,104.62,25.4708]
[1644539690413,35.78136932,104.69,104.62,14.3408]
[1644539690702,4.777,104.68,104.62,14.3408]
[1644539691102,48.25590293,104.67,104.62,14.3408]
[1644539691601,48.50590293,104.67,104.62,14.3408]
[1644539691802,0.25,104.67,104.63,62.224365]
[1644539692802,43.30282804,104.69,104.63,14.3393]
[1644539693007,48.07982804,104.69,104.63,14.3393]
[1644539694106,48.07982804,104.69,104.62,14.341]
[1644539694710,48.07982804,104.69,104.59,49.5726]
[1644539695409,62.42082804,104.69,104.59,49.5726]
[1644539695807,62.42082804,104.69,104.59,38.4426]
[1644539696108,62.42082804,104.69,104.59,14.4143]
[1644539696310,71.67282804,104.69,104.59,14.4143]
[1644539696711,71.67282804,104.69,104.59,28.7593]
[1644539697310,71.67282804,104.69,104.59,14.345]
[1644539698811,73.90404958,104.69,104.58,14.3464]
[1644539699011,11.13,104.68,104.55,11.13]
[1644539699214,14.3511,104.65,104.53,48.54445483]
[1644539699414,44.12690416,104.64,104.53,48.54445483]
[1644539699613,44.12690416,104.64,104.52,13.15203415]
[1644539699812,23.9494,104.63,104.52,13.15203415]
[1644539700012,4.781,104.62,104.52,13.15203415]
[1644539700214,14.3524,104.61,104.52,11.13]
[1644539700412,4.781,104.6,104.52,11.13]
[1644539700612,45.58301306,104.6,104.52,53.59720577]
[1644539701218,4.781,104.59,104.52,11.13]
[1644539701418,19.1357,104.59,104.52,14.3547]
[1644539701615,19.1357,104.59,104.5,22.6241]
[1644539701816,19.1357,104.59,104.49,76.91669465]
[1644539702015,19.1357,104.59,104.49,14.49689465]
[1644539702233,41.58156607,104.58,104.48,1.3448605]
[1644539702522,55.13416781,104.56,104.48,14.3598]
[1644539702717,4.783,104.55,104.48,14.3598]
[1644539703015,45.91613295,104.54,104.48,53.64079543]
[1644539703218,45.91613295,104.54,104.48,55.91282958]
[1644539703616,45.91613295,104.54,104.48,17.72669465]
[1644539704018,45.91613295,104.54,104.48,16.38183415]
[1644539704417,14.3577,104.57,104.48,16.38183415]
[1644539704627,4.784,104.58,104.48,27.51183415]
[1644539704818,48.5098,104.59,104.48,28.85669465]
[1644539705018,48.5098,104.59,104.49,1.3448605]
[1644539705222,4.782,104.58,104.51,14.3555]
[1644539705422,39.0334788,104.57,104.51,14.3555]
[1644539705623,39.0334788,104.57,104.49,42.36498401]
[1644539705820,39.0334788,104.57,104.49,2.27203415]
[1644539706322,39.0334788,104.57,104.5,14.3568]
[1644539706721,39.0334788,104.57,104.51,47.73752049]
[1644539707121,39.0334788,104.57,104.51,39.74317395]
[1644539707321,39.2834788,104.57,104.52,16.37593415]
[1644539707520,4.782,104.61,104.52,16.37593415]
[1644539707742,4.782,104.62,104.53,2.02203415]
[1644539707941,52.6191,104.64,104.53,13.15203415]
[1644539708545,35.07373752,104.63,104.53,57.84492324]
[1644539708843,35.07373752,104.63,104.55,14.3495]
[1644539708844,4.781,104.62,104.55,14.3495]
[1644539709344,49.42323752,104.63,104.55,14.3495]
[1644539709345,35.07373752,104.63,104.55,14.3495]
[1644539709642,35.07373752,104.63,104.56,51.90516459]
[1644539709843,35.07373752,104.63,104.56,52.15516459]
[1644539710043,35.07373752,104.63,104.57,2.02203415]
[1644539710243,35.07373752,104.63,104.58,50.94493268]
[1644539710441,1.31274335,104.7,104.58,65.28973268]
[1644539710442,14.3428,104.68,104.58,65.28973268]
[1644539710644,4.777,104.67,104.59,2.02203415]
[1644539710843,4.777,104.7,104.6,11.13]
[1644539711245,4.777,104.7,104.61,2.01838516]
[1644539711443,4.777,104.7,104.61,13.14838516]
[1644539711646,0.31827091,104.66,104.53,16.93899058]
[1644539711842,4.779,104.65,104.53,14.2468]
[1644539712042,15.909,104.65,104.5,15.3254605]
[1644539712243,34.28106388,104.65,104.5,13.9806]
[1644539712445,16.14084234,104.64,104.5,13.9806]
[1644539712651,43.95396714,104.62,104.51,35.97122061]
[1644539712946,43.95396714,104.62,104.53,48.28484464]
[1644539713145,4.781,104.61,104.54,11.13]
[1644539713443,4.781,104.61,104.55,38.00726394]
[1644539714847,43.95396714,104.62,104.55,38.00726394]
[1644539715445,14.3494,104.63,104.55,38.00726394]
[1644539715646,4.78,104.62,104.55,38.00726394]
[1644539717847,1.31274335,104.67,104.56,11.13]
[1644539718245,73.54334335,104.71,104.57,10.96766566]
[1644539718446,73.54334335,104.71,104.58,11.13]
[1644539718447,72.2306,104.71,104.58,11.13]
[1644539718648,53.23022204,104.7,104.59,45.53227703]
[1644539718847,22.74930692,104.68,104.61,40.57187118]
[1644539719053,78.32034335,104.71,104.61,40.57187118]
[1644539719249,0.25,104.68,104.62,11.13]
[1644539719549,72.2306,104.71,104.62,11.13]
[1644539719748,77.0076,104.71,104.62,11.13]
[1644539719948,4.777,104.71,104.62,11.13]
[1644539720148,47.00672471,104.7,104.63,45.62854928]
[1644539720548,4.777,104.71,104.63,59.96674928]
[1644539720753,0.25,104.7,104.63,59.96674928]
[1644539721553,38.61387174,104.7,104.63,59.96674928]
[1644539722450,38.61387174,104.7,104.63,14.3382]
[1644539722651,38.61387174,104.7,104.61,25.4707]
[1644539722852,4.777,104.69,104.59,11.13]
[1644539723252,6.08974335,104.69,104.59,11.13]
[1644539723452,32.83865722,104.68,104.59,52.10350025]
[1644539723654,38.36387174,104.66,104.59,66.44760025]
[1644539723853,38.36387174,104.66,104.57,11.13]
[1644539724057,4.779,104.65,104.57,11.13]
[1644539724859,32.83865722,104.64,104.58,47.59209467]
[1644539726160,32.83865722,104.64,104.56,11.13]
[1644539726459,32.83865722,104.64,104.55,14.3468]
[1644539727162,47.18685722,104.64,104.54,42.5121703]
[1644539727360,4.78,104.63,104.54,42.5121703]
[1644539727559,38.36387174,104.62,104.54,42.5121703]
[1644539727758,32.83865722,104.6,104.54,42.5121703]
[1644539728361,47.19215722,104.6,104.49,15.91]
[1644539728561,4.782,104.59,104.49,11.13]
[1644539729165,4.782,104.59,104.5,2.02950758]
[1644539729464,4.782,104.61,104.51,41.94108796]
[1644539729662,29.7639,104.62,104.51,58.23367671]
[1644539729862,29.7639,104.62,104.51,22.87766566]
[1644539730265,41.95457726,104.61,104.52,38.15669195]
[1644539730465,29.2479517,104.59,104.52,38.15669195]
[1644539730666,4.782,104.58,104.52,38.15669195]
[1644539731266,40.01459729,104.57,104.52,38.15669195]
[1644539731670,4.782,104.6,104.52,38.15669195]
[1644539732067,4.782,104.6,104.52,37.15669195]
[1644539732667,42.20670106,104.59,104.52,37.15669195]
[1644539733472,4.782,104.58,104.52,37.15669195]
[1644539733897,29.9958279,104.57,104.48,13.77717324]
[1644539734174,4.783,104.56,104.47,11.13]
[1644539734873,39.86736001,104.55,104.48,35.81575042]
[1644539735275,4.784,104.54,104.48,35.81575042]
[1644539736371,14.3593,104.56,104.48,35.81575042]
[1644539736573,4.784,104.57,104.48,35.81575042]
[1644539736774,4.784,104.57,104.48,37.845258]
[1644539737174,32.78415895,104.57,104.48,50.17145042]
[1644539737372,28.00015895,104.57,104.48,66.08445042]
[1644539737973,36.56,104.58,104.48,68.113958]
[1644539738273,36.56,104.58,104.48,94.14204596]
[1644539738481,36.56,104.58,104.49,4.783]
[1644539738675,4.783,104.57,104.48,92.11253838]
[1644539739076,42.43321105,104.56,104.48,58.69341608]
[1644539739278,4.783,104.55,104.48,35.81575042]
[1644539740478,29.76931791,104.54,104.46,13.15950758]
[1644539740677,34.55331791,104.54,104.45,11.13]
[1644539741478,34.55331791,104.54,104.44,44.59538504]
[1644539741676,45.68331791,104.54,104.44,44.59538504]
[1644539742280,60.04531791,104.54,104.38,34.51369068]
[1644539742481,0.30188544,104.52,104.39,11.13]
[1644539742681,4.785,104.51,104.38,11.60883385]
[1644539742880,51.8882,104.51,104.38,11.60883385]
[1644539743179,42.43321105,104.5,104.39,46.78315865]
[1644539743380,42.43321105,104.5,104.4,11.13]
[1644539743581,47.3532,104.51,104.4,44.5587223]
[1644539743987,4.785,104.5,104.4,44.5587223]
[1644539744582,47.84261652,104.5,104.41,41.90158807]
[1644539744779,47.84261652,104.5,104.41,53.03158807]
[1644539745180,47.84261652,104.5,104.41,41.90158807]
[1644539746183,43.05761652,104.5,104.41,41.90158807]
[1644539746382,43.05761652,104.5,104.42,11.13]
[1644539746581,43.05761652,104.5,104.43,46.09033414]
[1644539746781,43.30761652,104.5,104.43,46.09033414]
[1644539747984,0.25,104.5,104.43,46.09033414]
[1644539748383,4.785,104.52,104.43,46.09033414]
[1644539749003,47.87913086,104.51,104.43,46.09033414]
[1644539749205,4.785,104.5,104.43,46.09033414]
[1644539749403,24.3233981,104.49,104.43,46.09033414]
[1644539749803,4.785,104.48,104.4,11.33255565]
[1644539750004,4.785,104.48,104.4,11.13]
[1644539750204,4.785,104.48,104.38,0.47883385]
[1644539750403,19.46454967,104.48,104.38,0.47883385]
[1644539750605,19.71454967,104.48,104.38,0.47883385]
[1644539750805,43.26194068,104.47,104.38,0.47883385]
[1644539751406,4.785,104.48,104.38,0.47883385]
[1644539751607,53.0407,104.51,104.38,13.63842374]
[1644539751808,4.787,104.49,104.38,11.60883385]
[1644539752006,67.5793,104.51,104.38,29.40558948]
[1644539752208,62.7923,104.51,104.39,2.02958989]
[1644539752405,14.5396,104.51,104.4,46.56848306]
[1644539752607,14.5396,104.51,104.42,14.3633]
[1644539752809,4.785,104.56,104.43,11.13]
[1644539753208,4.785,104.56,104.43,19.40958989]
[1644539753409,4.785,104.56,104.43,64.29260104]
[1644539753609,47.04703546,104.55,104.44,38.34286815]
[1644539753808,47.04703546,104.55,104.45,11.13]
[1644539754109,47.29703546,104.55,104.46,41.83357723]
[1644539754309,47.29703546,104.55,104.48,14.3565]
[1644539754510,47.29703546,104.55,104.44,4.784]
[1644539754712,4.784,104.54,104.44,11.13]
[1644539755510,4.784,104.54,104.45,41.17976673]
[1644539755710,0.25,104.54,104.46,11.13]
[1644539755911,25.1554935,104.52,104.41,4.784]
[1644539756111,4.785,104.51,104.42,11.13]
[1644539756312,29.9404935,104.52,104.43,11.13]
[1644539756512,25.1554935,104.52,104.43,11.13]
[1644539756911,25.1554935,104.52,104.44,38.84192051]
[1644539758213,4.785,104.51,104.44,38.84192051]
[1644539758512,39.75365425,104.5,104.41,14.3628]
[1644539758718,4.785,104.49,104.42,11.13]
[1644539759513,4.785,104.49,104.43,41.59266859]
[1644539759715,32.44887471,104.48,104.42,11.13]
[1644539760718,4.785,104.5,104.43,46.67646843]
[1644539761720,4.785,104.54,104.45,41.99383184]
[1644539761920,4.787,104.56,104.46,11.13]
[1644539762119,47.191,104.57,104.46,15.914]
[1644539762327,4.784,104.59,104.46,16.164]
[1644539762622,4.783,104.57,104.46,30.2721]
[1644539762821,14.357,104.58,104.47,47.09371496]
[1644539762822,45.58441512,104.56,104.47,47.09371496]
[1644539763020,45.58441512,104.56,104.48,11.13]
[1644539763221,4.784,104.55,104.49,45.04555287]
[1644539763423,26.61811384,104.54,104.49,56.17555287]
[1644539764026,26.61811384,104.54,104.49,11.13]
[1644539764526,0.25,104.55,104.49,11.13]
[1644539765625,0.25,104.55,104.5,39.18362715]
[1644539765825,54.18764582,104.58,104.5,39.18362715]
[1644539766032,4.783,104.57,104.5,39.18362715]
[1644539766226,4.782,104.59,104.51,11.13]
[1644539766427,47.593,104.6,104.51,11.13]
[1644539766827,4.783,104.61,104.51,11.38]
[1644539767028,23.3949,104.62,104.52,42.01982023]
[1644539767229,4.781,104.61,104.53,11.13]
[1644539767429,6.09374335,104.63,104.53,11.13]
[1644539767651,6.09374335,104.64,104.53,11.13]
[1644539767829,1.31274335,104.64,104.53,11.13]
[1644539768028,43.63113622,104.63,104.54,41.10862696]
[1644539768228,43.63113622,104.63,104.54,57.01862696]
[1644539768428,4.78,104.62,104.54,45.88862696]
[1644539768629,28.57139274,104.61,104.54,4.78]
[1644539768929,4.781,104.6,104.5,11.13]
[1644539769328,25.99672154,104.63,104.51,4.782]
[1644539769530,1.31274335,104.63,104.52,11.13]
[1644539769832,24.27424335,104.64,104.52,11.13]
[1644539770029,4.781,104.63,104.52,11.13]
[1644539770231,2.23122154,104.62,104.52,11.13]
[1644539770430,43.53069577,104.61,104.53,35.11740804]
[1644539770628,48.31169577,104.61,104.53,35.11740804]
[1644539770827,48.56169577,104.61,104.53,35.11740804]
[1644539771229,4.781,104.61,104.53,35.11740804]
[1644539771431,15.58824335,104.64,104.54,11.13]
[1644539771629,14.2755,104.64,104.54,15.91]
[1644539771829,14.2755,104.64,104.54,21.91]
[1644539772029,4.78,104.63,104.54,15.91]
[1644539772231,42.09467786,104.62,104.54,15.91]
[1644539772434,42.09467786,104.62,104.54,11.13]
[1644539773035,58.59734299,104.62,104.54,11.13]
[1644539773532,4.781,104.61,104.54,11.13]
[1644539773734,30.1078511,104.6,104.54,11.13]
[1644539773934,4.781,104.59,104.54,11.13]
[1644539774135,4.781,104.59,104.49,22.6995]
[1644539774333,4.781,104.59,104.5,11.13]
[1644539775157,42.09467786,104.58,104.51,39.2123485]
[1644539775335,41.35795297,104.58,104.51,50.3423485]
[1644539776135,41.60795297,104.58,104.51,50.3423485]
[1644539778950,41.60795297,104.58,104.51,11.13]
[1644539779150,41.60795297,104.58,104.49,11.13]
[1644539779351,4.783,104.57,104.49,11.13]
[1644539779550,4.783,104.57,104.46,49.3755]
[1644539779851,27.7968,104.57,104.47,11.13]
[1644539780051,30.1078511,104.56,104.48,36.7068604]
[1644539780250,40.67262553,104.54,104.48,36.7068604]
[1644539781253,4.783,104.56,104.48,36.7068604]
[1644539781553,4.783,104.56,104.48,11.13]
[1644539781754,12.44274335,104.58,104.44,4.783]
[1644539781954,4.784,104.55,104.44,10.783]
[1644539782154,12.44274335,104.56,104.44,4.783]
[1644539782353,7.01522154,104.54,104.44,4.783]
[1644539782661,34.42656252,104.53,104.45,43.68897313]
[1644539782860,39.21056252,104.53,104.45,43.68897313]
[1644539783060,39.21056252,104.53,104.44,4.783]
[1644539783264,39.46056252,104.53,104.44,4.783]
[1644539783468,39.46056252,104.53,104.4,58.6806]
[1644539783662,63.08026252,104.53,104.4,64.6806]
[1644539783862,62.83026252,104.53,104.4,64.6806]
[1644539784063,37.03924155,104.51,104.41,42.42144362]
[1644539784563,37.03924155,104.51,104.42,11.13]
[1644539784763,37.03924155,104.51,104.43,47.41921848]
[1644539785263,37.28924155,104.51,104.43,47.41921848]
[1644539785963,34.42656252,104.49,104.43,47.41921848]
[1644539786865,4.785,104.5,104.43,47.41921848]
[1644539787263,4.785,104.51,104.43,47.41921848]
[1644539787965,35.94656639,104.5,104.43,47.41921848]
[1644539788163,5.035,104.51,104.43,47.41921848]
[1644539788765,0.25,104.51,104.43,47.41921848]
[1644539788967,4.785,104.52,104.43,47.41921848]
[1644539789166,42.4697021,104.51,104.43,47.41921848]
[1644539789366,4.785,104.5,104.43,47.41921848]
[1644539789567,28.99610197,104.49,104.43,47.41921848]
[1644539790181,14.368,104.5,104.43,47.41921848]
[1644539791169,35.2716567,104.49,104.43,47.41921848]
[1644539791370,40.0566567,104.49,104.43,47.41921848]
[1644539793169,4.785,104.49,104.43,47.41921848]
[1644539793370,4.785,104.51,104.43,47.41921848]
[1644539793675,4.785,104.52,104.43,47.41921848]
[1644539794072,41.25640035,104.51,104.43,47.41921848]
[1644539794274,30.20940372,104.49,104.43,47.41921848]
[1644539794672,4.785,104.52,104.43,47.41921848]
[1644539795276,23.6197,104.53,104.43,58.54921848]
[1644539795675,23.6197,104.53,104.43,63.33421848]
[1644539796377,28.10752499,104.52,104.43,63.33421848]
[1644539796577,28.10752499,104.52,104.43,58.54921848]
[1644539796776,4.785,104.51,104.43,58.54921848]
[1644539796976,37.80093635,104.5,104.43,58.54921848]
[1644539797176,4.785,104.52,104.43,58.54921848]
[1644539797377,4.785,104.5,104.43,58.54921848]
[1644539797577,19.1499,104.52,104.43,58.54921848]
[1644539797776,19.46224406,104.52,104.41,47.9633]
[1644539797976,21.6934656,104.52,104.4,1.0366304]
[1644539798178,74.79474291,104.51,104.4,1.0366304]
[1644539798380,4.785,104.5,104.4,1.0366304]
[1644539798579,34.32666445,104.5,104.4,1.0366304]
[1644539798780,41.63250206,104.49,104.4,1.0366304]
[1644539798976,29.83330201,104.47,104.4,1.0366304]
[1644539799177,14.3732,104.46,104.4,38.11965188]
[1644539799378,14.3732,104.46,104.4,1.0366304]
[1644539800480,39.51480047,104.45,104.4,1.0366304]
[1644539800684,49.10250047,104.45,104.4,1.0366304]
[1644539800882,4.788,104.44,104.4,1.0366304]
[1644539801384,4.788,104.44,104.38,0.47883385]
[1644539801385,36.7380036,104.42,104.38,0.47883385]
[1644539801585,34.72780047,104.4,104.38,0.47883385]
[1644539801783,10.85339994,104.39,104.31,11.13]
[1644539801984,6.06439994,104.39,104.31,11.13]
[1644539802787,6.06439994,104.39,104.32,46.79954175]
[1644539803286,4.791,104.46,104.33,105.38]
[1644539803486,45.8196,104.47,104.34,4.789]
[1644539803685,45.8196,104.47,104.35,11.13]
[1644539803889,42.74175071,104.45,104.36,44.00079365]
[1644539804086,4.789,104.44,104.36,44.00079365]
[1644539804287,4.788,104.45,104.36,44.00079365]
[1644539804587,14.3745,104.46,104.36,44.00079365]
[1644539804788,0.25,104.45,104.36,44.00079365]
[1644539805291,4.788,104.47,104.37,11.13]
[1644539805489,4.788,104.47,104.37,15.918]
[1644539805689,4.788,104.48,104.37,16.168]
[1644539805887,24.7011,104.49,104.37,16.168]
[1644539806291,24.7011,104.49,104.38,38.7048493]
[1644539806494,14.3675,104.51,104.39,25.4967]
[1644539806692,4.787,104.52,104.39,25.4967]
[1644539806892,4.787,104.52,104.39,25.7467]
[1644539807292,4.787,104.52,104.39,31.7467]
[1644539807493,4.787,104.52,104.4,43.10467879]
[1644539807694,4.785,104.54,104.41,11.13]
[1644539807893,23.1068,104.55,104.42,143.935]
[1644539808094,4.785,104.54,104.43,11.13]
[1644539808293,4.785,104.54,104.43,11.38]
[1644539808492,46.13403412,104.53,104.44,40.55939564]
[1644539808694,25.33176995,104.51,104.45,11.13]
[1644539808925,4.785,104.53,104.45,11.13]
[1644539809120,4.785,104.51,104.45,11.13]
[1644539809317,4.784,104.54,104.45,11.13]
[1644539809718,49.88474109,104.54,104.46,39.95887033]
[1644539809919,45.10074109,104.54,104.46,51.08887033]
[1644539810122,4.784,104.53,104.46,51.08887033]
[1644539810321,26.36506298,104.52,104.46,51.08887033]
[1644539810723,26.61506298,104.52,104.46,51.08887033]
[1644539811423,26.61506298,104.52,104.46,39.95887033]
[1644539813024,26.61506298,104.52,104.44,11.13]
[1644539813427,26.36506298,104.52,104.44,11.13]
[1644539814025,26.36506298,104.52,104.45,43.77611248]
[1644539814226,26.36506298,104.52,104.45,54.90611248]
[1644539814825,4.784,104.54,104.45,54.90611248]
[1644539815024,53.1866,104.55,104.45,54.90611248]
[1644539815227,48.4026,104.55,104.45,55.15611248]
[1644539815627,48.4026,104.55,104.46,4.784]
[1644539815825,83.12846732,104.55,104.47,58.85992617]
[1644539816026,14.3581,104.57,104.47,58.85992617]
[1644539816227,14.6081,104.57,104.47,58.85992617]
[1644539816427,0.25,104.57,104.47,58.85992617]
[1644539817229,4.783,104.56,104.47,58.85992617]